bitfinex/quotes_ETHUSD_20250616
["timestamp","ask_amount","ask_price","bid_price","bid_amount"]
[1750062491634,0.1896,2627.2,2627.1,3.80647862]
[1750062492258,0.1896,2627.2,2627.0,3.80655045]
[1750062492648,0.1896,2627.2,2627.1,3.80647862]
[1750062492843,0.1896,2627.2,2627.0,3.80654747]
[1750062493046,0.1896,2627.2,2627.1,3.80647862]
[1750062494666,0.1896,2627.2,2627.0,3.80654962]
[1750062495250,0.1896,2627.2,2627.1,3.80647862]
[1750062498555,0.1896,2627.2,2627.0,3.80656459]
[1750062499658,0.1896,2627.2,2627.1,3.80647862]
[1750062500157,0.1896,2627.2,2627.0,3.80656728]
[1750062500570,0.1896,2627.2,2627.1,3.80647862]
[1750062501989,6.50695172,2627.2,2626.7,0.7909]
[1750062502283,0.03801716,2627.1,2626.8,10.02077681]
[1750062502468,6.50695172,2627.2,2626.9,3.80673973]
[1750062503651,6.50695172,2627.2,2626.8,10.02088932]
[1750062503854,6.50695172,2627.2,2626.9,3.80670042]
[1750062504493,6.50695172,2627.2,2627.0,3.80658204]
[1750062504849,6.50695172,2627.2,2626.9,3.80671922]
[1750062505089,6.31735172,2627.0,2626.6,5.41712204]
[1750062505262,0.1896,2626.9,2626.6,5.41712204]
[1750062506613,10.22761716,2626.9,2626.6,1.61]
[1750062506815,10.1896,2626.9,2626.5,3.80728087]
[1750062507118,0.1896,2626.6,2626.5,3.80728087]
[1750062507620,0.1896,2626.6,2626.4,3.80741524]
[1750062507813,0.1896,2626.6,2626.5,3.80734818]
[1750062509535,0.1896,2626.6,2626.4,3.80741591]
[1750062509881,0.1896,2626.6,2626.5,3.80734818]
[1750062510383,0.1896,2626.6,2626.4,3.80741982]
[1750062511546,0.1896,2626.6,2626.3,3.80762682]
[1750062512049,6.50695172,2626.6,2626.3,3.80762682]
[1750062513059,6.50695172,2626.6,2626.4,3.80746315]
[1750062513206,0.1896,2626.6,2626.4,3.80746315]
[1750062513402,0.1896,2626.6,2626.2,3.80771451]
[1750062513655,6.50695172,2626.6,2626.1,8.8068]
[1750062513855,6.50695172,2626.6,2626.2,3.8077831]
[1750062514055,0.1896,2626.6,2626.3,3.80759599]
[1750062515651,1.01070924,2626.6,2626.3,3.80759599]
[1750062515825,1.01070924,2626.6,2626.2,3.80775281]
[1750062516858,1.01070924,2626.6,2626.3,3.80761192]
[1750062517220,0.1896,2626.6,2626.3,3.80761192]
[1750062517950,0.1896,2626.6,2626.4,3.80748263]
[1750062518565,0.1896,2626.6,2626.3,3.80756405]
[1750062520586,0.1896,2626.6,2626.2,3.80773031]
[1750062521504,0.03801716,2626.5,2626.1,6.234]
[1750062521795,0.1896,2626.4,2626.1,10.04192549]
[1750062521995,0.1896,2626.4,2626.1,3.82792549]
[1750062523103,0.8103,2626.3,2626.1,0.02]
[1750062523259,1.03791716,2626.3,2626.1,0.02]
[1750062523455,0.1896,2626.3,2626.1,3.82784567]
[1750062523700,0.1896,2626.3,2626.2,3.8077831]
[1750062523905,0.1896,2626.6,2626.3,3.80760473]
[1750062524106,0.1896,2626.6,2626.2,3.80770736]
[1750062524487,0.1896,2626.6,2626.1,4.01742876]
[1750062524803,3.01818239,2626.6,2626.1,4.01742876]
[1750062525107,10.12502074,2626.3,2626.1,0.02]
[1750062525405,0.03801716,2626.2,2626.1,0.02]
[1750062525583,0.1896,2626.2,2626.1,0.02]
[1750062526404,0.22761716,2626.2,2626.1,0.02]
[1750062527253,6.54496888,2626.2,2626.1,0.02]
[1750062527496,7.66254646,2626.2,2626.1,0.02]
[1750062528983,1.34519474,2626.2,2626.1,0.02]
[1750062529187,0.1896,2626.2,2626.1,0.02]
[1750062540013,0.1896,2626.2,2626.1,3.8279281]
[1750062541965,0.1896,2626.2,2626.1,0.02]
[1750062542257,0.91002392,2626.3,2626.1,0.02]
[1750062542435,11.09962392,2626.4,2626.1,3.8278508]
[1750062542748,11.31338502,2626.4,2626.1,3.8278508]
[1750062542896,11.09962392,2626.4,2626.1,3.8278508]
[1750062543101,6.31735172,2626.3,2626.1,0.02]
[1750062543333,0.783,2626.2,2626.1,0.02]
[1750062543740,0.82101716,2626.2,2626.1,0.02]
[1750062545619,5.01008123,2626.2,2626.1,0.02]
[1750062545862,15.01008123,2626.2,2626.1,0.02]
[1750062546163,24.5827629,2626.2,2626.1,0.02]
[1750062546360,24.79605265,2626.2,2626.1,0.02]
[1750062546568,24.5827629,2626.2,2626.1,0.02]
[1750062547061,24.79605116,2626.2,2626.1,0.02]
[1750062547271,24.5827629,2626.2,2626.1,0.02]
[1750062547457,12.32479754,2626.2,2626.1,0.02]
[1750062547655,11.20148097,2626.2,2626.1,0.02]
[1750062547819,12.11150489,2626.2,2626.1,0.02]
[1750062548337,16.13258717,2626.2,2626.1,0.02]
[1750062548548,12.11150489,2626.2,2626.1,0.02]
[1750062548745,18.9900743,2626.2,2626.1,0.02]
[1750062548928,21.3962912,2626.2,2626.1,0.02]
[1750062550356,21.39632431,2626.2,2626.1,0.02]
[1750062551671,25.20410741,2626.2,2626.1,0.02]
[1750062552241,25.41729688,2626.2,2626.1,0.02]
[1750062552469,25.20410741,2626.2,2626.1,0.02]
[1750062553085,25.41727993,2626.2,2626.1,0.02]
[1750062553271,25.20410741,2626.2,2626.1,0.02]
[1750062553464,25.41773368,2626.2,2626.1,0.02]
[1750062553671,25.20410741,2626.2,2626.1,0.02]
[1750062554260,25.41773945,2626.2,2626.1,0.02]
[1750062554465,21.60995649,2626.2,2626.1,0.02]
[1750062554670,25.20410741,2626.2,2626.1,0.02]
[1750062555339,13.8079281,2626.1,2626.0,5.70558593]
[1750062555569,10.7622,2625.3,2625.1,0.02]
[1750062555754,12.56936888,2625.2,2625.1,0.02]
[1750062556095,6.214,2625.2,2625.1,0.02]
[1750062556338,6.25201716,2625.2,2625.1,0.02]
[1750062556709,0.03801716,2625.2,2625.1,0.02]
[1750062556910,6.214,2625.2,2625.1,0.02]
[1750062557107,7.11845172,2625.6,2625.1,0.02]
[1750062557298,16.25201716,2625.5,2625.1,0.02]
[1750062557493,16.214,2625.5,2625.1,0.02]
[1750062557697,6.35536888,2625.4,2625.1,0.02]
[1750062558093,6.56901971,2625.4,2625.1,0.02]
[1750062558325,6.35536888,2625.4,2625.1,0.02]
[1750062559015,6.35536888,2625.4,2625.1,3.82935585]
[1750062559347,12.56936888,2625.4,2625.1,0.02]
[1750062559512,12.53135172,2625.4,2625.1,3.82936615]
[1750062559716,0.03801716,2625.3,2625.1,3.82936615]
[1750062560144,0.03801716,2625.3,2625.1,0.02]
[1750062560854,0.03801716,2625.3,2625.2,3.80923358]
[1750062561046,10.03801716,2625.5,2625.3,3.80908321]
[1750062561215,10.0,2625.5,2625.3,3.80908321]
[1750062561616,0.03801716,2625.4,2625.3,3.80908321]
[1750062561917,0.03801716,2625.4,2625.2,3.80918485]
[1750062562229,0.03801716,2625.4,2625.1,4.59140792]
[1750062562424,0.03801716,2625.4,2625.1,3.82930792]
[1750062562660,0.03801716,2625.4,2625.1,0.02]
[1750062562814,6.25201716,2625.4,2625.1,0.02]
[1750062563012,6.25201716,2625.4,2625.2,3.80923289]
[1750062563407,6.25201716,2625.4,2625.1,0.02]
[1750062563408,6.25201716,2625.4,2625.1,3.82930496]
[1750062563863,6.25201716,2625.4,2625.2,3.80923199]
[1750062564966,0.03801716,2625.4,2625.2,3.80923199]
[1750062565119,16.46660627,2625.5,2625.3,3.80908847]
[1750062565317,16.42858911,2625.5,2625.3,3.80908847]
[1750062565666,0.1904,2625.4,2625.3,3.80908848]
[1750062565872,0.1904,2625.4,2625.2,3.80915991]
[1750062566052,0.1904,2625.4,2625.3,3.80908848]
[1750062567815,0.1904,2625.4,2625.3,5.32973153]
[1750062568018,0.21358911,2625.5,2625.4,3.80894339]
[1750062577978,0.21358911,2625.5,2625.4,4.61404339]
[1750062578279,0.21358911,2625.5,2625.4,4.80444339]
[1750062581994,0.90903171,2625.9,2625.4,25.0816341]
[1750062582282,0.66666667,2627.0,2625.4,25.0816341]
[1750062582283,0.66666667,2627.0,2626.5,3.80734818]
[1750062582456,6.31735172,2626.7,2626.2,3.8077547]
[1750062582667,7.06875172,2626.7,2626.5,3.80731689]
[1750062582865,0.03801716,2626.6,2626.5,3.80731689]
[1750062583072,0.03801716,2626.6,2626.4,3.80742583]
[1750062583404,0.22761716,2626.6,2626.4,3.80742583]
[1750062584073,0.66666667,2627.0,2626.9,3.80676843]
[1750062585101,0.66666667,2627.0,2626.9,10.91102015]
[1750062585398,0.66666667,2627.0,2626.9,6.69266676]
[1750062586399,0.66666667,2627.0,2626.9,6.73072881]
[1750062593394,0.03801716,2627.6,2626.9,6.73072881]
[1750062593395,0.03801716,2627.6,2627.3,3.80610336]
[1750062593566,10.0,2627.7,2627.3,3.80610336]
[1750062593766,10.0,2627.5,2627.3,3.80610336]
[1750062594025,0.1896,2627.3,2627.0,3.80652752]
[1750062594321,0.1896,2627.1,2626.8,6.231]
[1750062594513,0.1896,2627.1,2626.8,6.244]
[1750062594661,0.1896,2627.1,2626.9,3.80674903]
[1750062596802,0.7795,2627.0,2626.7,3.8069677]
[1750062597006,1.00711716,2627.0,2626.8,3.80691175]
[1750062597505,1.00711716,2627.0,2626.7,3.80700246]
[1750062598111,1.00711716,2627.0,2626.8,3.80688848]
[1750062598478,1.00711716,2627.0,2626.7,3.80698834]
[1750062598813,11.00711716,2627.0,2626.7,3.80698834]
[1750062598997,12.70154689,2627.0,2626.6,3.80713835]
[1750062599196,0.1896,2626.8,2626.6,3.80713835]
[1750062599409,0.22761716,2626.8,2626.6,3.80713835]
[1750062599774,0.1896,2626.8,2626.6,3.80713835]
[1750062600006,2.09148986,2626.8,2626.5,3.80720943]
[1750062600228,2.12950702,2626.8,2626.4,3.80744008]
[1750062600414,6.31735172,2626.5,2626.2,5.43171379]
[1750062600618,6.31735172,2626.3,2625.9,3.80811342]
[1750062600820,0.79711716,2626.2,2626.0,3.80803871]
[1750062601106,0.1896,2626.1,2626.0,3.80803871]
[1750062601309,1.90188986,2626.8,2626.5,3.80731254]
[1750062601543,0.1896,2626.6,2626.5,3.80731254]
[1750062602413,0.1896,2626.6,2626.2,6.245]
[1750062602608,0.03801716,2626.5,2626.2,3.8077134]
[1750062602924,10.12508187,2626.3,2625.7,3.80842392]
[1750062603122,6.31735172,2625.9,2625.6,3.80857282]
[1750062603869,0.03801716,2626.1,2625.6,3.80857282]
[1750062603870,6.35536888,2626.1,2625.6,3.80857282]
[1750062604095,8.07271122,2626.1,2625.6,3.80859843]
[1750062604381,8.03469406,2626.1,2625.7,3.80848891]
[1750062604570,0.03801716,2626.0,2625.7,3.80848891]
[1750062604789,0.03801716,2626.0,2625.8,3.80834342]
[1750062604990,0.03801716,2626.0,2625.4,10.06586578]
[1750062605207,0.03801716,2626.1,2625.4,11.94536753]
[1750062605507,0.03801716,2626.1,2625.8,3.80829015]
[1750062606009,10.06349772,2626.4,2626.0,3.80796824]
[1750062606010,0.8106,2626.4,2626.0,3.80796824]
[1750062606191,0.03801716,2626.3,2626.0,3.80797794]
[1750062606507,6.35536888,2626.3,2626.0,3.80797794]
[1750062606714,7.07196577,2626.3,2626.0,3.80797794]
[1750062607874,7.07196577,2626.3,2625.9,3.80818503]
[1750062607875,0.75461405,2626.3,2626.1,3.80785914]
[1750062608075,0.84861716,2626.4,2626.2,3.8077831]
[1750062609813,0.8106,2626.4,2626.2,3.8077831]
[1750062610715,1.22220525,2626.6,2626.2,3.8077831]
[1750062611096,6.31735172,2626.5,2626.1,3.80786338]
[1750062611415,0.03801716,2626.4,2625.8,6.256]
[1750062611609,0.03801716,2626.4,2626.1,3.80780677]
[1750062612311,0.03801716,2626.4,2626.2,3.80777739]
[1750062612935,0.1896,2626.3,2626.2,3.80777739]
[1750062613901,0.03801716,2626.7,2626.4,3.80745649]
[1750062614107,0.1896,2626.5,2626.4,3.80745649]
[1750062614307,0.1896,2626.5,2626.3,3.80756062]
[1750062614648,0.1896,2626.5,2626.4,3.80749314]
[1750062615739,0.03801716,2626.9,2626.8,3.80691335]
[1750062615957,3.80556227,2627.8,2627.0,3.80654234]
[1750062615958,0.9969603,2627.4,2627.0,3.80654234]
[1750062616258,0.9969603,2627.4,2627.1,3.80645994]
[1750062616589,0.798,2627.4,2627.1,3.80645994]
[1750062617225,0.798,2627.4,2627.1,3.8064681]
[1750062617421,2.26217845,2627.4,2627.1,3.8064681]
[1750062619816,2.26217845,2627.4,2627.1,3.80647212]
[1750062620152,2.26217845,2627.4,2627.2,3.80632269]
[1750062620379,0.798,2627.4,2627.2,3.80632269]
[1750062620658,0.798,2627.4,2627.1,3.80647219]
[1750062620859,0.7739,2627.6,2627.2,3.80619598]
[1750062621145,4.997332,2627.4,2627.3,3.80618886]
[1750062624347,4.997332,2627.4,2627.1,3.80647219]
[1750062624648,4.997332,2627.4,2627.2,3.80626855]
[1750062624819,4.997332,2627.4,2627.3,3.80618886]
[1750062625342,4.997332,2627.4,2627.3,4.58248886]
[1750062627550,4.997332,2627.4,2627.3,4.62054745]
[1750062627917,4.997332,2627.4,2627.3,4.81014745]
[1750062628123,3.0,2627.4,2627.3,4.81014745]
[1750062628318,3.0,2627.4,2627.3,1.72587366]
[1750062628533,0.7675,2627.3,2626.6,0.7761]
[1750062628862,3.0,2627.4,2626.6,0.7761]
[1750062628863,3.0,2627.4,2627.2,3.80625122]
[1750062630159,3.0,2627.4,2627.3,3.80618886]
[1750062633629,3.0,2627.4,2627.3,4.61088886]
[1750062633824,3.0,2627.4,2627.3,7.14306056]
[1750062634142,3.0,2627.4,2627.3,7.18111622]
[1750062634659,3.0,2627.4,2627.3,17.73111622]
[1750062634964,3.0,2627.4,2627.3,17.69306056]
[1750062638464,3.0,2627.4,2627.3,17.88266056]
[1750062639828,3.0,2627.4,2627.3,24.14066056]
[1750062640527,3.0,2627.4,2627.3,17.33266056]
[1750062640752,3.0,2627.4,2627.3,8.97166056]
[1750062640954,3.0,2627.4,2627.3,6.43948886]
[1750062641141,3.0,2627.4,2627.3,5.44518886]
[1750062641350,3.0,2627.4,2627.3,11.70218886]
[1750062642361,3.0,2627.4,2627.3,3.80618886]
[1750062642537,1.42976667,2627.6,2627.3,10.06718886]
[1750062643452,1.42976667,2627.6,2627.4,3.80603499]
[1750062643681,1.42976667,2627.6,2627.5,3.80589914]
[1750062644191,0.66666667,2627.6,2627.5,3.80589914]
[1750062646083,0.66666667,2627.6,2627.5,10.06589914]
[1750062649564,0.66666667,2627.6,2627.5,6.253]
[1750062650079,0.66666667,2627.6,2627.3,3.80612007]
[1750062650284,0.66666667,2627.6,2627.4,6.253]
[1750062650700,0.66666667,2627.6,2627.2,3.9958297]
[1750062650859,0.66666667,2627.6,2627.4,6.252]
[1750062652180,0.66666667,2627.6,2627.5,3.80589914]
[1750062652379,0.66666667,2627.6,2627.5,3.84395589]
[1750062652680,0.66666667,2627.6,2627.5,6.21099908]
[1750062655806,0.66666667,2627.6,2627.5,6.17294233]
[1750062656214,0.66666667,2627.6,2627.5,6.21099669]
[1750062657185,0.66666667,2627.6,2627.5,6.17294233]
[1750062657385,0.66666667,2627.6,2627.5,3.80589914]
[1750062658423,1.48806667,2627.6,2627.4,10.05499039]
[1750062658598,1.67766667,2627.6,2627.5,3.80589914]
[1750062661085,1.67766667,2627.6,2627.1,0.1896]
[1750062661502,0.1896,2627.3,2627.1,10.05344619]
[1750062662521,0.1896,2627.3,2627.2,3.80633373]
[1750062667492,0.1896,2627.3,2627.1,10.04842591]
[1750062667992,0.1896,2627.3,2627.1,3.80642591]
[1750062668346,0.1896,2627.3,2627.1,10.04742591]
[1750062668691,0.1896,2627.3,2627.2,3.80633373]
[1750062669106,0.1896,2627.3,2627.1,10.04742831]
[1750062669733,0.1896,2627.3,2627.2,3.80633373]
[1750062670700,1.47086667,2627.6,2627.1,6.241]
[1750062670901,0.1896,2627.5,2627.4,3.80604399]
[1750062671757,0.66666667,2627.6,2627.5,3.80589914]
[1750062674447,0.66666667,2627.6,2627.3,10.23174036]
[1750062674952,0.66666667,2627.6,2627.5,3.80589914]
[1750062678315,0.66666667,2627.6,2627.3,10.9978546]
[1750062678654,0.02,2627.9,2627.6,0.8209]
[1750062678813,0.02,2627.9,2627.7,3.84358068]
[1750062679021,0.7906,2627.8,2627.3,0.1896]
[1750062679213,0.02,2627.9,2627.4,3.80604399]
[1750062679440,0.7906,2627.8,2627.6,3.80571338]
[1750062679654,0.04757628,2627.7,2627.6,3.80571338]
[1750062679954,0.7906,2627.8,2627.7,3.80560946]
[1750062680140,0.02,2627.9,2627.8,3.80546464]
[1750062680340,0.02,2627.9,2627.8,4.58755803]
[1750062680659,0.02,2627.9,2627.8,4.56847895]
[1750062680839,0.02,2627.9,2627.8,10.92454606]
[1750062681041,0.02,2627.9,2627.8,10.90547895]
[1750062683566,0.02,2627.9,2627.8,11.72777895]
[1750062683860,0.02,2627.9,2627.8,12.27777895]
[1750062684029,0.02,2627.9,2627.8,22.27777895]
[1750062687856,0.02,2627.9,2627.8,23.89977895]
[1750062688639,0.02,2627.9,2627.8,24.08937895]
[1750062690659,0.02,2627.9,2627.8,24.12737895]
[1750062690851,0.02,2627.9,2627.8,33.08602952]
[1750062691363,1.02,2627.9,2627.8,33.08602952]
[1750062692828,1.02,2627.9,2627.8,30.43915723]
[1750062693333,1.02,2627.9,2627.8,30.43515723]
[1750062697267,1.02,2627.9,2627.8,36.74693551]
[1750062697785,0.1275,2627.9,2627.8,36.74693551]
[1750062698878,0.1275,2627.9,2627.8,33.07175126]
[1750062702690,0.1275,2627.9,2627.8,25.07875126]
[1750062702996,0.1275,2627.9,2627.8,33.05875126]
[1750062703384,0.1275,2627.9,2627.8,15.94077895]
[1750062703593,0.1275,2627.9,2627.8,13.36577895]
[1750062703889,0.1275,2627.9,2627.8,14.56847895]
[1750062704046,0.1275,2627.9,2627.8,3.80546464]
[1750062704047,0.9514,2627.9,2627.8,3.80546464]
[1750062704247,0.1275,2627.9,2627.8,12.77290142]
[1750062704453,0.1275,2627.9,2627.8,20.73483695]
[1750062704661,0.1275,2627.9,2627.8,33.1888808]
[1750062704992,0.1275,2627.9,2627.8,33.9583808]
[1750062705165,0.1275,2627.9,2627.8,34.5083808]
[1750062709695,0.1275,2627.9,2627.8,17.02900849]
[1750062709997,0.1275,2627.9,2627.8,34.5063808]
[1750062711816,0.1275,2627.9,2627.8,25.7578808]
[1750062712007,0.1275,2627.9,2627.8,33.7338808]
[1750062712471,0.7541,2628.6,2628.5,3.8044512]
[1750062712799,0.7541,2628.6,2628.5,10.1054512]
[1750062713408,0.7541,2628.6,2628.5,10.2950512]
[1750062718298,0.7541,2628.6,2628.5,11.872314]
[1750062722618,0.7541,2628.6,2628.5,13.508314]
[1750062722824,0.7541,2628.6,2628.5,11.9310512]
[1750062723690,0.40313038,2628.9,2628.8,3.80401704]
[1750062723888,0.40313038,2628.9,2628.8,10.08801704]
[1750062724102,1.19113038,2628.9,2628.8,10.08801704]
[1750062724820,1.19113038,2628.9,2628.8,10.27761704]
[1750062728216,0.808,2628.9,2628.8,10.27761704]
[1750062728743,1.18636149,2628.9,2628.8,10.27761704]
[1750062729922,1.18636149,2628.9,2628.8,3.99361704]
[1750062730122,1.18636149,2628.9,2628.8,10.07801704]
[1750062731641,1.18636149,2628.9,2628.8,16.57837698]
[1750062731876,1.18636149,2628.9,2628.8,18.61662864]
[1750062732021,0.808,2628.9,2628.8,18.61662864]
[1750062732633,0.808,2628.9,2628.8,12.34262864]
[1750062732946,0.808,2628.9,2628.8,12.3038687]
[1750062733555,0.02,2628.9,2628.8,12.3038687]
[1750062734643,0.02,2628.9,2628.8,6.0318687]
[1750062734855,0.7731,2628.9,2628.8,10.07101704]
[1750062735161,10.82064788,2628.9,2628.4,1.653]
[1750062735312,0.7531,2628.6,2628.5,10.07337704]
[1750062738450,0.7531,2628.6,2628.5,10.07037704]
[1750062739549,0.7531,2628.6,2628.5,10.06837704]
[1750062740154,0.7531,2628.6,2628.5,3.80437704]
[1750062740316,0.7531,2628.6,2628.1,5.45793548]
[1750062740521,0.8112,2628.4,2628.2,10.0678167]
[1750062740749,0.8112,2628.4,2628.2,10.06783314]
[1750062740949,0.8112,2628.4,2628.3,6.267]
[1750062741141,1.0008,2628.4,2628.3,6.267]
[1750062741350,1.0008,2628.4,2628.2,3.80483713]
[1750062741666,1.0008,2628.4,2628.3,3.8047407]
[1750062742159,1.80735034,2628.4,2628.2,3.80485377]
[1750062742362,1.80735034,2628.4,2628.3,3.8047407]
[1750062742736,1.0008,2628.4,2628.3,3.8047407]
[1750062743064,1.0008,2628.4,2628.2,10.0708174]
[1750062743764,1.0008,2628.4,2628.2,10.07084724]
[1750062744070,1.04835995,2628.4,2628.2,10.07084724]
[1750062744425,1.04835995,2628.4,2628.3,3.8047407]
[1750062744732,1.0008,2628.4,2628.3,3.8047407]
[1750062744938,1.0008,2628.4,2628.2,10.07079124]
[1750062746341,1.0008,2628.4,2628.2,6.266]
[1750062746558,0.7945,2628.2,2627.9,3.80525172]
[1750062746764,0.7945,2628.0,2627.9,3.80525172]
[1750062747065,0.9841,2628.0,2627.9,10.06625172]
[1750062748533,0.9841,2628.0,2627.9,3.80525172]
[1750062748733,0.9841,2628.0,2627.9,10.06425172]
[1750062755342,0.9841,2628.0,2627.9,3.80525172]
[1750062755542,0.9841,2628.0,2627.9,10.05825172]
[1750062762080,0.1896,2628.0,2627.9,10.05825172]
[1750062763209,0.9098764,2628.7,2627.9,10.05825172]
[1750062763210,0.8029,2628.5,2628.4,3.8045149]
[1750062763352,0.9925,2628.5,2628.4,10.0465149]
[1750062763973,0.8029,2628.5,2628.4,10.0465149]
[1750062765651,0.8029,2628.5,2628.2,0.1896]
[1750062765857,0.8029,2628.5,2628.3,6.246]
[1750062765858,0.1896,2628.4,2628.3,6.246]
[1750062766758,0.1896,2628.4,2628.3,10.0507407]
[1750062768457,0.1896,2628.4,2628.3,6.246]
[1750062769683,0.1896,2628.4,2628.3,10.0507407]
[1750062771760,1.75893402,2628.8,2628.3,10.0507407]
[1750062772087,0.1896,2628.6,2628.4,3.80451607]
[1750062772289,0.1896,2628.6,2628.5,6.24]
[1750062772881,0.1896,2628.6,2628.5,10.0444512]
[1750062773387,0.1896,2628.6,2628.5,6.24]
[1750062774401,0.1896,2628.6,2628.5,10.0444512]
[1750062775573,0.9911,2628.8,2628.6,3.80423489]
[1750062776012,0.9911,2628.8,2628.7,6.236]
[1750062777411,0.9911,2628.8,2628.7,10.04016175]
[1750062779013,0.1896,2628.8,2628.7,6.236]
[1750062779215,0.1896,2628.8,2628.7,10.04016175]
[1750062779886,0.1896,2628.8,2628.7,11.56309178]
[1750062781611,0.1896,2628.8,2628.7,7.75893003]
[1750062781803,0.1896,2628.8,2628.7,6.236]
[1750062781982,0.1896,2628.8,2628.7,10.04016175]
[1750062783626,0.02,2628.9,2628.8,0.55]
[1750062783921,0.19884324,2629.8,2629.3,3.80329365]
[1750062783922,4.46101013,2629.4,2629.3,3.80329365]
[1750062784124,0.8098,2629.4,2629.2,6.29]
[1750062784621,0.8098,2629.4,2629.3,3.80329365]
[1750062784823,0.04753406,2629.7,2629.4,3.80307299]
[1750062784824,0.8098,2629.6,2629.4,3.80307299]
[1750062785032,0.8098,2629.6,2629.5,3.80300437]
[1750062785321,0.8098,2629.8,2629.7,3.80271513]
[1750062785535,0.2184241,2629.9,2629.8,3.80257053]
[1750062785728,0.39242266,2629.9,2629.8,3.80257053]
[1750062785924,0.02,2629.9,2629.8,3.80257053]
[1750062787105,0.02,2629.9,2629.7,3.80266708]
[1750062787727,0.02,2629.9,2629.8,6.292]
[1750062789616,0.40119672,2629.9,2629.8,6.292]
[1750062791326,1.52201951,2629.9,2629.1,0.8216]
[1750062791638,1.52201951,2629.9,2629.2,7.908]
[1750062791639,0.04753569,2629.8,2629.2,7.908]
[1750062791837,0.04753569,2629.8,2629.5,3.80286109]
[1750062792016,0.04753569,2629.8,2629.6,10.08983185]
[1750062792694,0.04753569,2629.8,2629.7,3.80271513]
[1750062793192,0.04753569,2629.8,2629.6,10.0897966]
[1750062793608,0.1896,2629.7,2629.6,10.0897966]
[1750062798605,0.1896,2629.7,2629.6,6.276]
[1750062799002,0.1896,2629.7,2629.6,10.07885975]
[1750062806371,0.1896,2629.7,2629.6,6.264]
[1750062806528,1.04063626,2629.7,2629.6,6.264]
[1750062806727,2.18481956,2629.7,2629.4,3.80306468]
[1750062807054,2.18481956,2629.7,2629.5,6.263]
[1750062807258,1.99521956,2629.7,2629.5,6.263]
[1750062810438,0.1896,2629.5,2629.3,10.06520715]
[1750062810654,0.1896,2629.4,2629.3,10.06520715]
[1750062813572,0.1896,2629.4,2629.3,3.80320715]
[1750062813739,0.1896,2629.4,2629.3,10.05920715]
[1750062814338,0.1896,2629.4,2629.3,10.05820715]
[1750062817152,0.1896,2629.4,2629.3,10.05520715]
[1750062817334,0.23714078,2629.4,2629.3,10.05520715]
[1750062817538,0.1896,2629.4,2629.3,10.05520715]
[1750062817741,0.1896,2629.4,2629.3,6.252]
[1750062817974,0.1896,2629.4,2629.3,10.05529365]
[1750062819385,0.1896,2629.4,2629.3,6.252]
[1750062820237,0.1896,2629.4,2629.1,3.80354696]
[1750062820489,0.1896,2629.4,2628.6,0.769]
[1750062820490,10.87695864,2629.3,2628.6,0.769]
[1750062820808,10.87695864,2629.3,2628.1,10.964]
[1750062820809,20.30430179,2628.9,2628.5,1.635]
[1750062820977,4.76407737,2628.8,2628.4,6.252]
[1750062821148,0.1896,2628.6,2628.2,3.80481608]
[1750062821341,0.1896,2628.6,2628.1,11.733]
[1750062821342,0.04755773,2628.6,2628.3,10.05671281]
[1750062821561,0.1896,2628.4,2628.3,10.05671281]
[1750062821998,0.1896,2628.4,2628.3,10.0567407]
[1750062822586,0.1896,2628.4,2628.3,6.25]
[1750062822798,0.797,2628.3,2627.8,2.4209]
[1750062822976,6.31075994,2628.2,2627.0,10.964]
[1750062823280,10.0,2627.7,2627.2,6.22715563]
[1750062823584,10.0,2627.9,2627.3,10.06017282]
[1750062823750,1.09188808,2627.8,2627.3,10.06017282]
[1750062824570,1.47540182,2627.8,2627.3,3.80617282]
[1750062824775,1.47540182,2627.8,2627.4,6.255]
[1750062825080,0.04757479,2627.7,2627.4,6.255]
[1750062825584,0.04757479,2627.7,2627.4,10.06102673]
[1750062829561,0.04757479,2627.7,2626.9,3.80674143]
[1750062829562,0.8142,2626.9,2626.2,6.267]
[1750062829895,0.04759443,2626.8,2626.2,6.267]
[1750062830080,0.8617902,2627.1,2626.6,3.80720322]
[1750062830248,0.8617902,2627.1,2626.7,10.07995443]
[1750062830588,11.94796922,2627.1,2626.7,6.273]
[1750062830787,11.94796922,2627.1,2626.3,0.7551]
[1750062830788,11.90037902,2627.1,2626.3,0.7551]
[1750062831005,10.0,2626.9,2626.4,10.08647105]
[1750062831211,0.40416707,2626.8,2626.4,3.80747105]
[1750062831385,0.04759025,2626.8,2626.5,6.282]
[1750062831593,0.35655507,2626.7,2626.3,3.80761789]
[1750062831815,2.4447752,2626.8,2626.4,6.282]
[1750062832107,0.35655452,2626.7,2626.4,6.282]
[1750062832259,2.4447752,2626.8,2626.4,6.282]
[1750062832885,0.1896,2626.5,2626.4,6.282]
[1750062833460,0.1896,2626.5,2626.4,10.08949314]
[1750062834473,0.1896,2626.5,2626.4,6.282]
[1750062834796,0.1896,2626.5,2626.4,10.08949314]
[1750062837581,0.1896,2626.5,2626.3,3.80756603]
[1750062837789,0.1896,2626.5,2626.4,6.276]
[1750062838992,0.1896,2626.5,2626.4,10.08349314]
[1750062839994,0.1896,2626.5,2626.4,3.80749314]
[1750062840195,0.1896,2626.5,2626.4,10.08049314]
[1750062840394,1.08617902,2627.1,2626.5,0.7672]
[1750062840603,10.04758773,2627.0,2626.6,6.273]
[1750062840768,10.0,2627.0,2626.6,6.273]
[1750062840969,0.04758773,2626.9,2626.6,10.08017296]
[1750062841164,0.04758773,2627.0,2626.6,10.08017296]
[1750062841369,0.35649404,2626.9,2626.6,10.08017296]
[1750062841593,1.04040818,2626.9,2626.6,10.08017296]
[1750062842404,0.35649427,2626.8,2626.6,10.08017296]
[1750062842608,1.04040818,2626.9,2626.6,10.08017296]
[1750062843281,1.04040818,2626.9,2626.6,10.08019892]
[1750062843481,0.35649621,2626.8,2626.6,10.08019892]
[1750062843687,1.04040818,2626.9,2626.6,10.08019892]
[1750062843882,0.04758774,2626.8,2626.6,6.273]
[1750062844211,4.57428093,2626.7,2626.2,0.7966]
[1750062844531,7.09822327,2626.8,2626.2,6.267]
[1750062844532,6.31075994,2626.4,2626.2,6.267]
[1750062844686,0.04759864,2626.3,2626.2,6.267]